[Event "Saint Louis Invitational-A 2018"]
[Site "Saint Louis"]
[Date "2018.11.18"]
[Round "4"]
[White "Ali Marandi, Cemil Can"]
[Black "Shtembuliak, Evgeny"]
[Result "1/2-1/2"]
[ECO "C01"]
[WhiteElo "2552"]
[BlackElo "2487"]
[Annotator "RC"]
[PlyCount "32"]
[EventDate "2018.11.16"]
[EventType "tourn"]
[EventCountry "USA"]
[SourceTitle "playchess.com"]
[Source "ChessBase"]
[SourceQuality "1"]
[TimeControl "5400+30"]

1. e4 {[%emt 0:00:35]} e6 {[%emt 0:00:00]} 2. d4 {[%emt 0:00:23]} d5 {[%emt 0:00:00]} 3. exd5 {[%emt 0:00:30]} exd5 {[%emt 0:00:00]} 4. c4 {[%emt 0:00:10]} dxc4 {[%emt 0:04:32]} 5. Bxc4 {[%emt 0:01:49]} Nf6 {[%emt 0:01:36]} 6. Nf3 {[%emt 0:03:19]} Bd6 {[%emt 0:00:10]} 7. O-O {[%emt 0:01:41]} O-O {[%emt 0:00:17]} 8. Nc3 {[%emt 0:02:04]} Nc6 {[%emt 0:03:30]} 9. Bg5 {[%emt 0:15:18]} h6 {[%emt 0:05:24]} 10. Bh4 {[%emt 0:03:13]} Bg4 {[%emt 0:06:12]} 11. h3 {[%emt 0:05:25]} Bxf3 {[%emt 0:04:03]} 12. Qxf3 {[%emt 0:02:42]} Nxd4 {[%emt 0:00:23]} 13. Qxb7 {[%emt 0:00:07]} Rb8 {[%emt 0:00:14]} 14. Qxa7 {[%emt 0:00:31]} Ra8 {[%emt 0:00:10]} 15. Qb7 {[%emt 0:00:06]} Rb8 {[%emt 0:00:08]} 16. Qa7 {[%emt 0:00:06]} Ra8 {[%emt 0:00:05]} 1/2-1/2